Cogmind - Beta 9.4 @@@ ROGUE MODE // 2020.02.19 @ 23:56:19 Player: Togure Result: Destroyed by G-34 Mercenary with Small Laser Performance ------------- Evolutions (0) 0 Regions Visited (2) 400 Robots Destroyed (23) 115 Value Destroyed (487) 487 Prototype IDs (0) 0 Alien Tech Used (0) 0 Bonus (0) 0 TOTAL SCORE: 1002 Bonus ------- None Cogmind --------- Core Integrity 0/250 Matter 191/300 Energy 100/100 System Corruption 7% Temperature Cool (6) Movement Core (300) Ox5 Location -10/Mines Parts ------- > --- POWER (1) -------- (None) > --- PROPULSION (2) --- (None) > --- UTILITY (2) ------ Large Storage Unit > --- WEAPON (2) ------- Assault Rifle > --- INVENTORY (10) --- Ion Engine Ion Engine Aluminum Leg Light Assault Rifle Peak State ------------ > --- POWER ------------ Light Nuclear Core > --- PROPULSION ------- Aluminum Leg Aluminum Leg > --- UTILITY ---------- Large Storage Unit Terrain Scan Processor > --- WEAPON ----------- Particle Cannon Rocket Launcher > --- INVENTORY -------- Ion Engine Ion Engine Aluminum Leg Particle Cannon Assault Rifle Light Assault Rifle Grenade Launcher [Rating: 12] Favorites ----------- Power Light Nuclear Core Engine Ion Engine Power Core Light Nuclear Core Propulsion Aluminum Leg Leg Aluminum Leg Utility Large Storage Unit Storage Large Storage Unit Processor Terrain Scan Processor Weapon Rocket Launcher Energy Cannon Particle Cannon Ballistic Gun Assault Rifle Launcher Rocket Launcher Build | -11 -10 -10 ------- Run | Scr Mat Min Slots Evolved . | . . . Power . | . . . Propulsion . | . . . Utility . | . . . Weapon . | . . . Parts Attached 21 | 6 9 6 Power 3 | 1 1 1 Engine 2 | 1 1 . Core 1 | . . 1 Reactor . | . . . Propulsion 5 | 2 2 1 Treads . | . . . Leg 5 | 2 2 1 Wheel . | . . . Hover . | . . . Flight . | . . . Utility 3 | 1 2 . Device . | . . . Storage 2 | 1 1 . Processor 1 | . 1 . Hackware . | . . . Protection . | . . . Artifact . | . . . Weapon 10 | 2 4 4 Energy Gun . | . . . Energy Cannon 3 | . 2 1 Ballistic Gun 3 | 2 . 1 Ballistic Cannon . | . . . Launcher 4 | . 2 2 Special Weapon . | . . . Impact Weapon . | . . . Slashing Weapon . | . . . Piercing Weapon . | . . . Special Melee Weapon . | . . . Unidentified Prototypes . | . . . Parts Lost 9 | . . 9 Power 1 | . . 1 Propulsion 3 | . . 3 Utility 1 | . . 1 Weapon 4 | . . 4 Highest Loss Streak 6 | . . 6 Average Slot Usage (%) 80 | . 84 79 Engine 2 | . 9 . Core 10 | . . 12 Leg 23 | . 25 22 Storage 14 | . 14 14 Processor 7 | . 7 7 Energy Cannon 7 | . 10 7 Launcher 13 | . 12 13 Naked Turns . | . . . Heaviest Build 29 | 12 28 29 Greatest Support 20 | 20 20 20 Greatest Overweight (x) 5 | 1 1 5 Average Overweight (x) 1 | . . 1 Largest Inventory Capacity 10 | 6 10 10 Average Capacity 9 | 5 7 10 Most Carried 8 | 6 6 8 Average Carried 6 | 2 4 6 Final Capacity 10 | 6 10 10 Final Carried 5 | 1 5 4 Class Distribution -------------------- 100% | Mutant Dominant Class ---------------- Mutant | -10/Materials Mutant | -10/Mines Resources | -11 -10 -10 ----------- Run | Scr Mat Min Matter Collected 504 | 260 33 211 Remotely . | . . . Salvage Created 429 | . 174 255 Parts 38 | . 23 15 Haulers Intercepted 1 | . 1 . Recyclers Shooed 1 | . . 1 Parts Field Recycled . | . . . Retrieved Matter . | . . . Parts Self-Destructed . | . . . Prevented . | . . . Kills | -11 -10 -10 ------- Run | Scr Mat Min Combat Hostiles Destroyed 17 | . 6 11 Cannons 4 | . 1 3 AOE 13 | . 5 8 Classes Destroyed 6 | . 5 1 Worker 3 | . 2 1 Builder 1 | . 1 . Tunneler 1 | . . 1 Hauler 1 | . 1 . Swarmer 6 | . 3 3 Grunt 11 | . 3 8 Best Kill Streak 5 | . 4 5 Combat Bots Only 5 | . 3 5 Max Kills in Single Turn 3 | . 3 3 Gunslinging . | . . . Exploded 3 | . 1 3 Melee . | . . . Uniques/NPCs Destroyed . | . . . Combat | -11 -10 -10 -------- Run | Scr Mat Min Damage Taken 1100 | . 61 1039 Core 255 | . . 255 Absorbed by Shields . | . . . Core Remaining (%) 100 | 100 . . Volleys Fired 25 | . 8 17 Largest 2 | . 2 2 Hottest 101 | . 98 101 Shots Fired 37 | . 11 26 Gun 2 | . . 2 Cannon 13 | . 3 10 Launcher 22 | . 8 14 Special . | . . . Kinetic 2 | . . 2 Thermal 13 | . 3 10 Explosive 22 | . 8 14 Electromagnetic . | . . . Robot Hit Streak 8 | . 5 8 Robot Miss Streak 3 | . 1 3 Penetration Max . | . . . Secondary Targets . | . . . Shots Hit Robots 22 | . 8 14 Core Hits 32 | . 14 18 Critical Hits . | . . . Critical Kills . | . . . Critical Parts Destroyed . | . . . Melee Attacks . | . . . Impact . | . . . Slashing . | . . . Piercing . | . . . Sneak Attacks . | . . . Combat Hostiles . | . . . Follow-up Attacks . | . . . Damage Inflicted 1236 | . 464 772 Guns 11 | . . 11 Cannons 142 | . 21 121 Explosions 1083 | . 443 640 Melee . | . . . Ramming . | . . . Kinetic 11 | . . 11 Thermal 142 | . 21 121 Explosive 1083 | . 443 640 Electromagnetic . | . . . Impact . | . . . Slashing . | . . . Piercing . | . . . Highest Corruption 7 | . . 7 Average Corruption 7 | . . 7 Corruption Purged . | . . . Effects 10 | . . 10 Message Errors 2 | . . 2 Matter Fused 2 | . . 2 Heat Flow Errors 2 | . . 2 Data Loss (minor) 1 | . . 1 Data Loss (major) 2 | . . 2 Weapon Failures 1 | . . 1 Overload Shots . | . . . Overflow Damage 30 | . . 30 Projectiles 16 | . . 16 Explosions 14 | . . 14 Melee . | . . . Knockbacks . | . . . Impact . | . . . Kinetic . | . . . Secondary . | . . . Self-Inflicted Damage 81 | . 4 77 Shots 4 | . 1 3 Rammed . | . . . Targets Rammed . | . . . Kicked . | . . . Crushed . | . . . Highest Temperature 266 | . 108 266 Average Temperature 85 | . 57 89 Received Heat Transfer 387 | . 15 372 Siege Activations . | . . . Robots Corrupted . | . . . Combat Hostiles . | . . . Parts Fried . | . . . Impact Corruptions . | . . . Robots Melted . | . . . Combat Hostiles . | . . . Parts Melted . | . . . Heat Transferred 259 | . 37 222 Parts Sabotaged . | . . . Parts Stolen . | . . . Parts Stripped . | . . . Power Chain Reactions . | . . . Missiles Intercepted . | . . . Alert | -11 -10 -10 ------- Run | Scr Mat Min Peak Influence 178 | . 162 178 Average Influence 74 | . 58 85 Maximum Alert Level . | . . . Low Security (%) 100 | 100 100 100 Level 1 . | . . . Level 2 . | . . . Level 3 . | . . . Level 4 . | . . . Level 5 . | . . . High Security . | . . . Max Security . | . . . Squads Dispatched . | . . . Investigation . | . . . Extermination . | . . . Reinforcement . | . . . Assault . | . . . Garrison . | . . . Intercept . | . . . Construction Impeded . | . . . Haulers Reinforced . | . . . Stealth | -11 -10 -10 --------- Run | Scr Mat Min Distress Signals 2 | . . 2 Communications Jammed . | . . . Distress Signals . | . . . Times Spotted 22 | . 6 16 Peak Tracking Total 7 | . 3 7 Tactical Retreats . | . . . Traps | -11 -10 -10 ------- Run | Scr Mat Min Traps Triggered 2 | . 2 . Indirectly . | . . . Trap Hack Attempts . | . . . Triggered . | . . . Disarmed . | . . . Reprogrammed . | . . . Reused . | . . . Traps Extracted . | . . . Installed . | . . . Triggered . | . . . Machines | -11 -10 -10 ---------- Run | Scr Mat Min Machines Disabled 1 | . . 1 Max in Single Turn 1 | . . 1 Machines Sabotaged . | . . . Garrisons Compromised . | . . . Overloaded Fab Kills . | . . . Fab Network Shutdowns . | . . . Hacking | -11 -10 -10 --------- Run | Scr Mat Min Machines Accessed . | . . . Terminals . | . . . Fabricators . | . . . Repair Stations . | . . . Recycling Units . | . . . Scanalyzers . | . . . Garrison Access . | . . . Total Hacks . | . . . Successful . | . . . Failed . | . . . Catastrophic . | . . . Database Lockouts . | . . . Manual . | . . . Terminals . | . . . Fabricators . | . . . Repair Stations . | . . . Recycling Units . | . . . Scanalyzers . | . . . Garrison Access . | . . . Terminal Hacks . | . . . Fabricator Hacks . | . . . Repair Station Hacks . | . . . Recycling Unit Hacks . | . . . Scanalyzer . | . . . Garrison Access Hacks . | . . . Unauthorized Hacks . | . . . Terminals . | . . . Fabricators . | . . . Repair Stations . | . . . Recycling Units . | . . . Scanalyzers . | . . . Garrison Access . | . . . Data Cores Recovered . | . . . Used . | . . . Hacking Detections . | . . . Full Trace Events . | . . . Feedback Events . | . . . Feedback Blocked . | . . . Robot Schematics Acquired . | . . . Robots Built . | . . . Matter . | . . . Time . | . . . Total Robot Build Rating . | . . . Part Schematics Acquired . | . . . Parts Built . | . . . Matter . | . . . Time . | . . . Total Part Build Rating . | . . . Parts Repaired . | . . . Time . | . . . Parts Recycled . | . . . Recycled Matter . | . . . Retrieved Matter . | . . . Retrieved Components . | . . . Parts Scanalyzed . | . . . Part Schematics Acquired . | . . . Parts Damaged . | . . . Bothacking | -11 -10 -10 ------------ Run | Scr Mat Min Used RIF Installer . | . . . Robots Hacked . | . . . Non-combat . | . . . Combat . | . . . Robot Hacks Applied . | . . . Relay Couplers Released . | . . . Robots Rewired . | . . . Allies Hacked . | . . . Hacks Repelled . | . . . Allies | -11 -10 -10 -------- Run | Scr Mat Min Total Allies . | . . . Largest Group . | . . . Highest-Rated Group . | . . . Highest-Rated Ally . | . . . Total Orders . | . . . Ally Attacks . | . . . Total Damage . | . . . Kills . | . . . Allies Corrupted . | . . . Allies Melted . | . . . Intel | -11 -10 -10 ------- Run | Scr Mat Min Robot Analysis Total . | . . . Derelict Logs Recovered 1 | . . 1 Drone Launches . | . . . Drone Recoveries . | . . . Exploration | -11 -10 -10 ------------- Run | Scr Mat Min Turns Passed 916 | 56 169 691 Spaces Moved 474 | 47 100 327 Core 30 | 25 . 5 Treads . | . . . Legs 444 | 22 100 322 Wheels . | . . . Hover . | . . . Flight . | . . . Fastest Speed 50 | 50 120 150 Average Speed 149 | 93 133 161 Slowest Speed 300 | 120 150 300 Overloaded Moves . | . . . Propulsion Burnouts . | . . . Robots Hopped . | . . . Cave-ins Triggered 1 | . . 1 Exploration Rate (%) 26 | 3 26 49 Regions Visited 2 Branch Regions 1 Pre-discovered Areas . | . . . Known Exits Taken . | . . . Unknown Exits Taken 2 | 1 1 . Scrap Searched 1 | . . 1 Spaces Dug . | . . . Terrain Destroyed 159 | . 46 113 Melee . | . . . Projectile 1 | . . 1 AOE 158 | . 46 112 Actions | -11 -10 -10 --------- Run | Scr Mat Min Total 642 | 58 123 461 Wait 108 | . . 108 Move 471 | 46 99 326 Hop . | . . . Pick Up 14 | 6 5 3 Fast Attach 5 | 1 4 . Attach 10 | 5 1 4 Detach . | . . . Swap 6 | . 4 2 Drop 2 | . 2 . Fire 25 | . 8 17 Melee . | . . . Ram . | . . . Kick . | . . . Crush . | . . . Escape Stasis 1 | . . 1 Rewire . | . . . Trap . | . . . Miscellaneous . | . . . Route ------- -11/Scrapyard -10/Materials -10/Mines History --------- Turn | Location | Event 23 | -11/Scrapyard | Discovered new exit (range 15) 57 | -11/Scrapyard | Entered Materials 198 | -10/Materials | Discovered new exit (range 14) 226 | -10/Materials | Entered Mines 234 | -10/Mines | Met a Derelict bent on vengeance 300 | -10/Mines | Build established: Mutant 336 | -10/Mines | Received a Rocket Launcher from a helpful Derelict 374 | -10/Mines | Excavation squad dispatched 374 | -10/Mines | A large section of the Mines collapsed 576 | -10/Mines | Crushed by falling debris 607 | -10/Mines | Lost 3 parts (1n1u1w) 624 | -10/Mines | Excavation squad dispatched 625 | -10/Mines | Learned 2 Materials zone layouts 874 | -10/Mines | Excavation squad dispatched 898 | -10/Mines | Core integrity fell below 50% 906 | -10/Mines | Core integrity fell below 20% 917 | -10/Mines | Destroyed by G-34 Mercenary with Small Laser Last Messages --------------- 00885_ System corrupted: Matter fused (-5). 00887_ G-34 Mercenary destroyed. 00887_ R-06 Scavenger sends out distress signal. 00889_ S-10 Pest destroyed. 00889_ Aluminum Leg destroyed. 00889_ Destroyed Aluminum Leg. 00889_ Grenade Launcher destroyed. 00889_ Destroyed Grenade Launcher. 00889_ S-10 Pest destroyed. 00891_ K-01 Serf collects debris. 00891_ Acquired 12 matter. 00895_ Lgt. Nuclear Core destroyed. 00895_ System corrupted: Assault Rifle jammed. 00895_ K-01 Serf collects debris. 00898_ G-34 Mercenary destroyed. 00898_ Aluminum Leg destroyed. 00899_ K-01 Serf collects debris. 00899_ Particle Cannon destroyed. 00903_ K-01 Serf collects debris. 00913_ System corrupted: Substantial component data lost. Map ----- +----------------------------------------------------+ | ??????????????????????????????????????????? ??? | | ??????????????????????????????????????????? ??? | | ???????????????????????????????????????????# #??? | | ???????????????????????????????????????????# #??? | | ??????????????????????????????????????????#####??? | | ?????????????????????????????????????????## ##?? | | ?????????????????????????????????????????# #?? | | ?????????????????????????????????????????# ##? | | ?????????????????????????????????????????# #? | | ?????????????????????????????????????????## #? | | ??????????????????????? #?????????????????# #? | | ??????????????????????? #???????????????## #? | | ??????????????????????? ???????????????# #? | | ??????????????????????? ??????????????## ##? | | ??????????????????????? ?????????????## ##?? | | ??????????????????????? ????????????## ##??? | | ???????????????????????# ????????????# ####? | | ???????????????????????# #???????????## ## ## | | ???????????????????????# #????????????## # # | | ???????????????????????# #?????????##??## # # | | ??????????????????????##t #????????? ???## ## | | ???????????????????#### #?????????? ????# | | ???????????????????? ##????????? ##### % | | ?????????????????????# gr ##???????? ####### | | ??????????????????????# %g##???????# ## #??# # | | ??????????????????????# @= #???????# ## #??## # | | ??????????????????????## ##?####?# ## ####### | | ???????????????????????## g ### # # #### | | ????????????????????????# *[% ## | | ????????????????????????# g %= # | | ????????????????????????# *t ## | | ????????????????????????## t ## | | ?????????????????????????## # #### | | ??????????????????????????## ## ## #??? | | ???????????????????????????## ### #### ##??? | | ???????????????????????????## #?# ##?####???? | | ??????????????????????????## ## #????????? | | ??????????????????????????# t #????????? | | ??????????????????????????# """ #????????# | | ??????????????????????????# """ #??????### | | ??????????????????????????## """ ##????### # | | ???????????????????????????## #?????# # | | ????????????????????????????# # #?????# # | | ????????????????????????????# # ##?????# ## | | ????????????????????????????# # ##??????###= | | ???????????????????????????????# ##??????## = | | ???????????????????????????????# ##??????# # | | ???????????????????????????????## #??????## # | | ????????????????????????????????# ##??????### | | ???????????????????????????????## #???????## | +----------------------------------------------------+ Best States ------------- Heat Dissipation 25 Energy Generation 14 Energy Capacity 250 Matter Stores 300 Matter Capacity 300 Sight Range 16 Terrain Scan Density 85 Evasion (%) 50 Item Schematics ----------------- None Robot Schematics ------------------ None Fabricated ------------ Nothing Alien Tech Used ----------------- None Achievements -------------- None Challenges ------------ None Game ------ Seed PoweredGlidesysSabre Manual? 0 Play Time 00:13:22 Cumulative 9.4 hours Start 2020.02.19 @ 23:43:22 End 2020.02.19 @ 23:56:19 Sessions 1 Manual Loads 0 Difficulty Rogue Special Mode None Game No. 27 Rogue 27 Adventurer 0 Explorer 0 Win Type - Total 0 Types 0/0/0/0/0/0/0 Lore% 11 Gallery% 13 Achievement% 10 Wizard Run 0 Options --------- ASCII 0 Keyboard 0 Movement Mouse Keybinds 0 Fullscreen 1 Font 24/Smallcaps Map View 76x50 Tactical HUD 1 Map Filters NONE Filters NONE Steam 1 RUN: 18e74946-171d-4846-97e8-5f5d07e0cfad